Workbook

Sheet Septembre 2018 (5) (hidden)
A1: NOM/PRENOM ENFANT A CHARGE | E1: MOIS
A2: …. BRUNEL
A4: EMPLOYEUR | E4: SALARIE
A5: Nom: | C5: BRUNEL Samuel | E5: Nom: | G5: VIALLETEL Nathalie
A6: Adresse: | C6: 22 rue des Bordets 63720 ENNEZAT | E6: Adresse: | G6: 25 rue des Blés d'or 63720 ENNEZAT
A7: N° URSSAF/ PAJE : | E7: N° de sécurité sociale | G7: 2720843040010 46
A8: Date de début de contrat : | C8: 1er Septembre 2018 | E8: N° Salarié | G8: 134691
A9: Total Heures Moyens | C9: 190 | E9: Emploi occupé | G9: Assistante maternelle agréée
A10: Total Heures Réels | C10: =SUM(B16:B46) -> 0 | E10: Convention Collective des Assistantes maternelles du Particulier Employeur | H10: Code 8891A
A11: Nombre Jours Moyens | C11: 20j
A12: Nombres Jours Réels | C12: =COUNTIF(B15:B46,">0") -> 0
A13: Congés payés | C13: Du ……….. Au ……….. | H13: NET | I13: BRUT
A14: JOURS | B14: HEURES | C14: Salaire de Base sur une mensualisation de | F14: 190 | H14: 599.44 | I14: =(H20*100)/76.64 -> 782.1503132
A16: 2018-09-01 | B16: /
A17: 2018-09-02 | B17: / | C17: Heures supplémentaires | E17: x | F17: 3.48 | H17: =F17*D17 -> 0
A18: 2018-09-03 | C18: Réduction jour d'absence | E18: x | F18: 30.56 | H18: =D18*F18 -> 0
A19: 2018-09-04 | C19: ou heure d'absence | E19: x | F19: 2.9 | H19: =D19*F19 -> 0
A20: 2018-09-05 | C20: Net à Verser | D20: 1 | H20: =(H14+H17)-H18-H19 -> 599.44
A21: 2018-09-06
A22: 2018-09-07 | C22: Calcul des Cotisations Salariales
A23: 2018-09-08 | B23: / | E23: BASE | F23: TAUX
A24: 2018-09-09 | B24: / | C24: CSG non imposable | E24: =(I14*98.25)/100 -> 768.4626827 | F24: 5.1 | H24: =(E24*F24)/100 -> 39.19159682
A25: 2018-09-10 | C25: CSG +RDS imposable | E25: =(I14*98.25)/100 -> 768.4626827 | F25: 2.9 | H25: 22.2854178
A26: 2018-09-11 | C26: Sécurité Sociale | E26: =I14 -> 782.1503132 | F26: 8.05 | H26: 62.96310021
A27: 2018-09-12 | C27: Chômage | E27: =I14 -> 782.1503132 | F27: 2.4 | H27: 18.77160752
A28: 2018-09-13 | C28: AGFF | E28: =I14 -> 782.1503132 | F28: 0.8 | H28: 6.257202505
A29: 2018-09-14 | C29: IRCEM (retraite cpl) | E29: =I14 -> 782.1503132 | F29: 3.1 | H29: 24.24665971
A30: 2018-09-15 | B30: / | C30: Prévoyance | E30: =I14 -> 782.1503132 | F30: 1.15 | H30: =E30*(F30/100) -> 8.994728601
A31: 2018-09-16 | B31: / | C31: Total des Cotisations Salariales | H31: =SUM(H24:H30) -> 182.7103132
A32: 2018-09-17
A33: 2018-09-18 | C33: Calcul des Indemnités
A34: 2018-09-19 | C34: Indemnités nourriture | D34: 0 | E34: x | F34: 3 | H34: =D34*F34 -> 0
A35: 2018-09-20 | C35: Indemnités entretien (-9h) | D35: =COUNTIF(B16:B47,">0") -> 0 | E35: x | F35: 3.01 | H35: =D35*F35 -> 0
A36: 2018-09-21 | C36: Indemnités de rupture | D36: =1/120 -> 0.008333333333 | E36: x | H36: =(D36)*F36 -> 0
A37: 2018-09-22 | B37: / | C37: Total des Indemnités | D37: 2 | H37: =H34+H35+H36 -> 0
A38: 2018-09-23 | B38: /
A39: 2018-09-24 | C39: Net à Payer | D39: 1+2 | H39: =H20+H37 -> 599.44
A40: 2018-09-25
A41: 2018-09-26 | C41: Date du Paiement | F41: Signature
A42: 2018-09-27 | C42: Moyen de Paiement
A43: 2018-09-28
A44: 2018-09-29 | B44: / | C44: NET IMPOSABLE (sans indemnités) | G44: =H20 -> 599.44
A45: 2018-09-30 | B45: / | C45: NET IMPOSABLE (avec indemnités) | G45: =H39 -> 599.44
C47: CUMUL ANNUEL NET IMPOSABLE (sans indemnités)
C48: CUMUL ANNUEL NET IMPOSABLE (avec indemnités)

Sheet Septembre
A1: LOUISE BRUNEL | F1: SEPTEMBRE 2018 | M1: HORAIRE DE GARDE
A3: EMPLOYEUR | F3: SALARIE | M3: Lundi | N3: Mardi | O3: Mercredi | P3: Jeudi | Q3: Vendredi | T3: Semaine | U3: Lundi | V3: Mardi | W3: Mercredi | X3: Jeudi | Y3: Vendredi
A4: Nom: | C4: BRUNEL Samuel | F4: Nom: | H4: VIALLETEL Nathalie | M4: 07h30-18h | N4: 07h30-18h | O4: 7h30-17h | P4: 07h30-17h30 | Q4: 07h30-17h30 | T4: 41 | U4: 10.5 | V4: 10.5 | W4: 9.5 | X4: 10 | Y4: 10
A5: Adresse: | C5: 22 rue des Bordets 63720 ENNEZAT | F5: Adresse: | H5: 25 rue des Blés d'or 63720 ENNEZAT | M5: 10.5 | N5: 10.5 | O5: 9.5 | P5: 10 | Q5: 10 | S5: Nombre | T5: 4
A6: N° URSSAF/ PAJE : | F6: N° de sécurité sociale | H6: 2720843040010 46 | S6: Total | T6: =T5*T4 -> 164 | U6: 0 | V6: 0 | W6: 0 | X6: 0 | Y6: 0
A7: Début de contrat : | C7: 1er Septembre 2018 | F7: N° Salarié | H7: 134691 | M7: JOUR GARDE PREVU | P7: TEMPS GARDE
A8: Heures Prévues | C8: =S8 -> 164 | D8: Jours Congés | E8: =B18+B24+B30+B36+B42 -> 0 | F8: Emploi occupé | H8: Assistante maternelle agréée | S8: =SUM(T6:Y7) -> 164
A9: Heures Réelles | C9: =IF(ISBLANK(I40),0,(B17+B23+B29+B35+B41)) -> 82 | D9: Jours Absences | E9: =B19+B25+B31+B37+B43 -> 0 | F9: Convention Collective des Assistantes maternelles du Particulier Employeur | I9: Code 8891A | M9: Date mois | N9: JNG | O9: Jour Ouvré | P9: Semaine | Q9: Mois
A10: Jours Gardes Prévus | C10: =O10 -> 16 | D10: Heures Absences | E10: =B20+B26+B32+B38+B44 -> 0 | M10: 2018-09-01 | N10: 2018-09-05 | O10: =NETWORKDAYS(M10,M11,N10:N13) -> 16 | P10: 41 | Q10: 164
A11: Jours Gardes Réels | C11: =IF(ISBLANK(I40),0,A17+A23+A29+A35+A41) -> 8 | M11: 2018-09-30 | N11: 2018-09-10
A12: Congés payés | H12: Brut | I12: Net | N12: 2018-09-19
A13: SEMAINE DE GARDE | C13: Mensualisation de Base prévue dans le contrat* | F13: 164 | G13: 52 semaines | H13: 691.12 | I13: 533.34 | N13: 2018-09-28
A15: Semaine 36 | C15: *41h00/semaine
A16: 03/09/2018 au 09/09/2018 | C16: Heures supplémentaires | E16: 0 | F16: x | G16: 3.6 | I16: =E16*G16 -> 0
A17: 4 | B17: 41 | C17: Réduction Jour d'Absence | E17: =B19+B25+B31+B42 -> 0 | F17: x | G17: 0 | I17: =E17*G17 -> 0
A18: CP | B18: 0 | C18: ou Heure d'Absence | E18: =B20+B26+B32+B38+B43 -> 0 | F18: x | G18: 3 | I18: =E18*G18 -> 0
A19: Jours Absences | B19: 0 | F19: Net à verser (1) | H19: NET | I19: =(I13+I16)-I17-I18 -> 533.34 | N19: A remplir début de mois
A20: Heures Absences | B20: 0 | H20: BRUT | I20: =(I19*100)/76.64 -> 695.9029228
A21: Semaine 37 | C21: Calcul des Cotisations Salariales
A22: 10/09/2018 au 16/09/2018 | F22: BASE | G22: TAUX
A23: 4 | B23: 41 | C23: CSG non imposable | F23: =(H13*98.25)/100 -> 679.0254 | G23: 6.8 | I23: =(F23*G23)/100 -> 46.1737272
A24: CP | B24: 0 | C24: CSG +RDS imposable | F24: =(H13*98.25)/100 -> 679.0254 | G24: 2.4 | I24: 16.2966096
A25: Jours Absences | B25: 0 | C25: Sécurité Sociale | F25: =H13 -> 691.12 | G25: 8.05 | I25: 55.63516
A26: Heures Absences | B26: 0 | C26: Chômage | F26: =H13 -> 691.12 | G26: 0.95 | I26: 6.56564
A27: Semaine 38 | C27: AGFF | F27: =H13 -> 691.12 | G27: 0.8 | I27: 5.52896
A28: 17/09/2018 au 23/09/2018 | C28: IRCEM (retraite cpl) | F28: =H13 -> 691.12 | G28: 3.1 | I28: 21.42472
C29: Prévoyance | F29: =H13 -> 691.12 | G29: 1.15 | I29: =F29*(G29/100) -> 7.94788
A30: CP | B30: 0 | F30: Total des cotisations salariales | I30: =SUM(I23:I29) -> 159.5726968
A31: Jours Absences | B31: 0 | C31: Calcul des Indemnités
A32: Heures Absences | B32: 0 | C32: Indemnités nourriture | E32: 0 | F32: x | G32: 3 | I32: =E32*G32 -> 0
A33: Semaine 39 | C33: Indemnités entretien | E33: =C11 -> 8 | F33: x | G33: 3.54 | I33: =E33*G33 -> 28.32
A34: 24/09/2018 au 30/09/2018 | C34: Indemnités de rupture | E34: 0 | F34: x | G34: =1/120 -> 0.008333333333 | I34: =(G34)*E34 -> 0
G35: Net à verser (2) | I35: =I32+I33+I34 -> 28.32
A36: CP | B36: 0 | C36: Observations | E36: Adaptation Août 2018 de 15h00 soit | I36: Net à verser (3)
A37: Jours Absences | B37: 0
A38: Heures Absences | B38: 0 | I38: =15*3 -> 45
C39: Net à payer (1+2+3) | F39: => | I39: =I35+I19+I38 -> 606.66
C40: Date du Paiement | G40: Signature | I40: f
C41: Moyen de Paiement | E41: Chèque
C42: NET IMPOSABLE (sans indemnités) | I42: =I19+I38 -> 578.34
C43: NET IMPOSABLE (avec indemnités) | I43: =I39 -> 606.66
C44: CUMUL ANNUEL NET IMPOSABLE (sans indemnités) | I44: =IF(I39<>0,I42,"…€") -> 578.34
C45: CUMUL ANNUEL NET IMPOSABLE (avec indemnités) | I45: =IF(I39<>0,I43,"…€") -> 606.66
A46: Conservez ce bulletin de salaire sans limitation de durée. La loi 91. 1406 du 31/12/1991 ainsi que le décret n° 92. 660 du 13/07/1992 suppriment l'obligation des cotisations patronales.Taux en vigueur au 01 / 01 / 2017

Sheet Récapitulatif Annuel
A1: LOUISE BRUNEL | E1: RÉCAPITULATIF 2018
L2: Date | N2: =TODAY() -> 2018-09-13
A3: EMPLOYEUR | E3: SALARIE | L3: Heure | N3: =NOW() -> 43356.01059
A4: Nom: | C4: BRUNEL Samuel | E4: Nom: | G4: VIALLETEL Nathalie
A5: Adresse: | C5: 22 rue des Bordets 63720 ENNEZAT | E5: Adresse: | G5: 25 rue des Blés d'or 63720 ENNEZAT
A6: N° URSSAF/ PAJE : | E6: N° de sécurité sociale | G6: 2720843040010 46
A7: Date de début de contrat : | C7: 1er Septembre 2018 | E7: N° Salarié | G7: 134691
A8: Total Heures Prévues | E8: Emploi occupé | G8: Assistante maternelle agréée
A9: Total Heures Réelles | E9: Convention Collective des Assistantes maternelles du Particulier Employeur | H9: Code 8891A
A10: Nombre Jours Ouvrés
A11: Nombre Jours Réels
A12: Mois | B12: Total jour | C12: Total heure | E12: Absence | G12: CP | H12: Salaire versé
C13: Normal | D13: Supp | E13: Heure | F13: Jour
A14: Janvier | B14: =IFERROR(IF(INDIRECT($A$14&"!D39")<>0,INDIRECT($A14&"!C11"),"/"),"") ->  | C14: =IFERROR(IF(INDIRECT($A$14&"!D39")<>0,INDIRECT($A14&"!C9"),"/"),"") ->  | D14: =IFERROR(IF(INDIRECT($A$14&"!D39")<>0,INDIRECT($A14&"!D16"),"/"),"") ->  | F14: =IFERROR(IF(INDIRECT($A$14&"!D39")<>0,INDIRECT($A14&"!D17"),"/"),"") ->  | G14: =IFERROR(IF(INDIRECT($A$14&"!D39")<>0,INDIRECT($A14&"!B46"),"/"),"") ->  | H14: =IFERROR(IF(INDIRECT($A$14&"!D39")<>0,INDIRECT($A14&"!G36"),"/"),"") -> 
A15: Février
A16: Mars
A17: Avril
A18: Mai
A19: Juin
A20: Juillet
A21: Aôut
A22: Septembre
A23: Octobre
A24: Novembre
A25: Décembre
A26: ANNUEL
A27: Année | B27: Total jour | C27: Total heure | E27: Absence | G27: CP | H27: Salaire versé
C28: Normal | D28: Supp | E28: Heure | F28: Jour
A29: 2019 | B29: =SUM(B14:B25) -> 0 | C29: 0 | D29: 0 | E29: 0 | F29: 0 | G29: 0 | H29: 0
A31: CUMUL ANNUEL NET IMPOSABLE
A32: CUMUL ANNUEL NET IMPOSABLE (sans indemnités)
A33: CUMUL ANNUEL NET IMPOSABLE (avec indemnités)

Sheet Formules
A1: Férié de l'année
A2: 2019-01-01
A3: 2019-04-22
A4: 2019-05-01
A5: 2019-05-08
A6: 2019-05-30
A7: 2019-06-10
A8: 2019-07-14
A9: 2019-08-15
A10: 2019-11-01
A11: 2019-11-11
A12: 2019-12-25
C55: Etirer plage jours férié dans formule "F"
C63: Selectionner cellule a reprendre référence puis se servire de la fontion Remplacer en haute dans barre de tache

Sheet ESSAI V1
F1: SEPTEMBRE 2018 | AJ1: HORAIRE DE GARDE
A3: EMPLOYEUR | F3: SALARIE | O3: =TODAY() -> 2018-09-13 | AJ3: Lundi | AK3: Mardi | AL3: Mercredi | AM3: Jeudi | AN3: Vendredi | AQ3: Semaine | AR3: Lundi | AS3: Mardi | AT3: Mercredi | AU3: Jeudi | AV3: Vendredi
A4: Nom: | F4: Nom: | AJ4: 07h30-18h | AK4: 07h30-18h | AL4: 7h30-17h | AM4: 07h30-17h30 | AN4: 07h30-17h30 | AQ4: 41 | AR4: 10.5 | AS4: 10.5 | AT4: 9.5 | AU4: 10 | AV4: 10
A5: Adresse: | F5: Adresse: | AJ5: 10.5 | AK5: 10.5 | AL5: 9.5 | AM5: 10 | AN5: 10 | AP5: Nombre | AQ5: 4
A6: N° URSSAF/ PAJE : | F6: N° de sécurité sociale | U6: Calcul du nombre d'heure pour semaine incomplète | AP6: Total | AQ6: =AQ5*AQ4 -> 164 | AR6: 0 | AS6: 0 | AT6: 0 | AU6: 0 | AV6: 0
A7: Début de contrat : | F7: N° Salarié | AJ7: JOUR GARDE PREVU | AM7: TEMPS GARDE
A8: Heures Prévues | C8: =AP8 -> 164 | D8: Congés Payés | E8: =COUNTIF(B15:B45,"CP") -> 0 | F8: Emploi occupé | AP8: =SUM(AQ6:AV7) -> 164
A9: Heures Réelles | D9: Jours Absences | E9: =COUNTIF(B16:B46,"JA") -> 0 | F9: Convention Collective des Assistantes maternelles du Particulier Employeur | AJ9: Date mois | AK9: JNG | AL9: Jour Ouvré | AM9: Semaine | AN9: Mois
A10: Jours Gardes Prévus | C10: =AL10 -> 16 | D10: Heures Absences | E10: =COUNTIF(B17:B47,"HA") -> 0 | AJ10: 2018-09-01 | AK10: 2018-09-05 | AL10: =NETWORKDAYS(AJ10,AJ11,AK10:AK13) -> 16 | AM10: 41 | AN10: 164
A11: Jours Gardes Réels | C11: =COUNTIFS(N15:N45,">1") -> 16 | AJ11: 2018-09-30 | AK11: 2018-09-10
A12: Congés payés | C12: =IF(ISBLANK(D12),"","Du") ->  | E12: =IF(ISBLANK(F12),"","Au") ->  | H12: Brut | I12: Net | AK12: 2018-09-19
A13: SEMAINE DE GARDE | C13: Mensualisation de Base prévue dans le contrat* | F13: 164 | G13: 52 semaines | H13: 691.12 | I13: 533.34 | AK13: 2018-09-28
K14: Chiffre jour | L14: Cal JNG | M14: Horaire | N14: 1 | O14: 2 | P14: 3 | Q14: 1+2+3 | R14: Avant date | S14: N° sem | U14: Chiffre jour | Y14: Calcul jour semaine
A15: 2018-09-01 | B15: =R15 -> WE | C15: *41h00/semaine | K15: =IF(ISBLANK(A15),"",WEEKDAY(A15,2)) -> 6 | L15: =IF(ISNA(MATCH(A15,$AK$10:$AK$15,0)),"","JNG") ->  | M15: =IF(K15=6,"",IF(K15=7,"",IF(K15=1,10.5,IF(K15=2,10.5,IF(K15=3,9.5,IF(K15=4,10,IF(K15=5,10,))))))) ->  | N15: =IF(L15="JNG","",M15) ->  | O15: =L15 ->  | P15: =IF(ISBLANK(A15),"",IF(AND(N15="",O15=""),"WE","")) -> WE | Q15: =IF(A15<>0,N15&O15&P15,"") -> WE | R15: =IF(A15<=$O$3,Q15,"") -> WE | S15: =IF(ISBLANK(A15),"",WEEKNUM(A15,2)) -> 35 | T15: =IF(A15>0,S15,"") -> 35 | U15: =INDEX(K15:K45,MATCH(T15,T15:T45,0)) -> 6 | Y15: =IF(Z15=7,41,"") ->  | Z15: =IF(AA16>AA15,COUNTIF($T$15:$T$45,AA15),"") -> 2 | AA15: =AB15 -> 35 | AB15: =WEEKNUM(AJ10,2) -> 35 | AQ15: A remplir début de mois
A16: 2018-09-02 | B16: =R16 -> WE | C16: Heures supplémentaires | E16: 0 | F16: x | G16: 3.6 | I16: =E16*G16 -> 0 | K16: =IF(ISBLANK(A16),"",WEEKDAY(A16,2)) -> 7 | N16: =IF(L16="JNG","",M16) ->  | O16: =L16 ->  | P16: =IF(ISBLANK(A16),"",IF(AND(N16="",O16=""),"WE","")) -> WE | Q16: WE | R16: =IF(A16<=$O$3,Q16,"") -> WE | S16: =IF(ISBLANK(A16),"",WEEKNUM(A16,2)) -> 35 | T16: =IF(A16>0,S16,"") -> 35 | U16: =INDEX(K16:K46,MATCH(T16,T16:T46,0)) -> 7 | Y16: 41 | Z16: 7 | AA16: =IF(AA15<$AB$16,AA15+1,"") -> 36 | AB16: =WEEKNUM(AJ11,2) -> 39
A17: 2018-09-03 | B17: 10,5 | C17: Réduction Jour d'Absence | E17: =E9 -> 0 | F17: x | G17: 0 | I17: =E17*G17 -> 0 | K17: 1 | M17: 10.5 | N17: 10.5 | Q17: 10,5 | R17: 10,5 | S17: 36 | T17: 36 | U17: 1 | Y17: 41 | Z17: 7 | AA17: 37
A18: 2018-09-04 | B18: 10,5 | C18: ou Heure d'Absence | E18: =E10 -> 0 | F18: x | G18: 3 | I18: =E18*G18 -> 0 | K18: 2 | M18: 10.5 | N18: 10.5 | Q18: 10,5 | R18: 10,5 | S18: 36 | T18: 36 | U18: 2 | Y18: 41 | Z18: 7 | AA18: 38
A19: 2018-09-05 | B19: JNG | F19: Net à verser (1) | H19: NET | I19: =(I13+I16)-I17-I18 -> 533.34 | K19: 3 | L19: JNG | M19: 9.5 | O19: JNG | Q19: JNG | R19: JNG | S19: 36 | T19: 36 | U19: 3 | Y19: 41 | Z19: 7 | AA19: 39
A20: 2018-09-06 | B20: 10 | H20: BRUT | I20: =(I19*100)/76.64 -> 695.9029228 | K20: 4 | M20: 10 | N20: 10 | Q20: 10 | R20: 10 | S20: 36 | T20: 36 | U20: 4
A21: 2018-09-07 | B21: 10 | C21: Calcul des Cotisations Salariales | K21: 5 | M21: 10 | N21: 10 | Q21: 10 | R21: 10 | S21: 36 | T21: 36 | U21: 5 | Z21: =IF(AG17>AA21,COUNTIF($T$15:$T$45,AA21),"") -> 
A22: 2018-09-08 | B22: WE | F22: BASE | G22: TAUX | K22: 6 | P22: WE | Q22: WE | R22: WE | S22: 36 | T22: 36 | U22: 6
A23: 2018-09-09 | B23: WE | C23: CSG non imposable | F23: =(H13*98.25)/100 -> 679.0254 | G23: 6.8 | I23: =(F23*G23)/100 -> 46.1737272 | K23: 7 | P23: WE | Q23: WE | R23: WE | S23: 36 | T23: 36 | U23: 7
A24: 2018-09-10 | B24: JNG | C24: CSG +RDS imposable | F24: =(H13*98.25)/100 -> 679.0254 | G24: 2.4 | I24: 16.2966096 | K24: 1 | L24: JNG | M24: 10.5 | O24: JNG | Q24: JNG | R24: JNG | S24: 37 | T24: 37 | U24: 1
A25: 2018-09-11 | B25: 10,5 | C25: Sécurité Sociale | F25: =H13 -> 691.12 | G25: 8.05 | I25: 55.63516 | K25: 2 | M25: 10.5 | N25: 10.5 | Q25: 10,5 | R25: 10,5 | S25: 37 | T25: 37 | U25: 2
A26: 2018-09-12 | B26: 9,5 | C26: Chômage | F26: =H13 -> 691.12 | G26: 0.95 | I26: 6.56564 | K26: 3 | M26: 9.5 | N26: 9.5 | Q26: 9,5 | R26: 9,5 | S26: 37 | T26: 37 | U26: 3
A27: 2018-09-13 | B27: 10 | C27: AGFF | F27: =H13 -> 691.12 | G27: 0.8 | I27: 5.52896 | K27: 4 | M27: 10 | N27: 10 | Q27: 10 | R27: 10 | S27: 37 | T27: 37 | U27: 4
A28: 2018-09-14 | C28: IRCEM (retraite cpl) | F28: =H13 -> 691.12 | G28: 3.1 | I28: 21.42472 | K28: 5 | M28: 10 | N28: 10 | Q28: 10 | S28: 37 | T28: 37 | U28: 5
A29: 2018-09-15 | C29: Prévoyance | F29: =H13 -> 691.12 | G29: 1.15 | I29: =F29*(G29/100) -> 7.94788 | K29: 6 | P29: WE | Q29: WE | S29: 37 | T29: 37 | U29: 6
A30: 2018-09-16 | F30: Total des cotisations salariales | I30: =SUM(I23:I29) -> 159.5726968 | K30: 7 | P30: WE | Q30: WE | S30: 37 | T30: 37 | U30: 7
A31: 2018-09-17 | C31: Calcul des Indemnités | K31: 1 | M31: 10.5 | N31: 10.5 | Q31: 10,5 | S31: 38 | T31: 38 | U31: 1
A32: 2018-09-18 | C32: Indemnités nourriture | E32: 0 | F32: x | G32: 3 | I32: =E32*G32 -> 0 | K32: 2 | M32: 10.5 | N32: 10.5 | Q32: 10,5 | S32: 38 | T32: 38 | U32: 2
A33: 2018-09-19 | C33: Indemnités entretien | E33: =C11 -> 16 | F33: x | G33: 3.54 | I33: =E33*G33 -> 56.64 | K33: 3 | L33: JNG | M33: 9.5 | O33: JNG | Q33: JNG | S33: 38 | T33: 38 | U33: 3
A34: 2018-09-20 | C34: Indemnités de rupture | E34: 0 | F34: x | G34: =1/120 -> 0.008333333333 | I34: =(G34)*E34 -> 0 | K34: 4 | M34: 10 | N34: 10 | Q34: 10 | S34: 38 | T34: 38 | U34: 4
A35: 2018-09-21 | G35: Net à verser (2) | I35: =I32+I33+I34 -> 56.64 | K35: 5 | M35: 10 | N35: 10 | Q35: 10 | S35: 38 | T35: 38 | U35: 5
A36: 2018-09-22 | C36: Observations | E36: Adaptation Août 2018 de 15h00 soit | I36: Net à verser (3) | K36: 6 | P36: WE | Q36: WE | S36: 38 | T36: 38 | U36: 6
A37: 2018-09-23 | K37: 7 | P37: WE | Q37: WE | S37: 38 | T37: 38 | U37: 7
A38: 2018-09-24 | I38: =15*3 -> 45 | K38: 1 | M38: 10.5 | N38: 10.5 | Q38: 10,5 | S38: 39 | T38: 39 | U38: 1
A39: 2018-09-25 | C39: Net à payer (1+2+3) | F39: => | I39: =I35+I19+I38 -> 634.98 | K39: 2 | M39: 10.5 | N39: 10.5 | Q39: 10,5 | S39: 39 | T39: 39 | U39: 2
A40: 2018-09-26 | C40: Date du Paiement | G40: Signature | I40: f | K40: 3 | M40: 9.5 | N40: 9.5 | Q40: 9,5 | S40: 39 | T40: 39 | U40: 3
A41: 2018-09-27 | C41: Moyen de Paiement | E41: Chèque | K41: 4 | M41: 10 | N41: 10 | Q41: 10 | S41: 39 | T41: 39 | U41: 4
A42: 2018-09-28 | C42: NET IMPOSABLE (sans indemnités) | I42: =I19+I38 -> 578.34 | K42: 5 | L42: JNG | M42: 10 | O42: JNG | Q42: JNG | S42: 39 | T42: 39 | U42: 5
A43: 2018-09-29 | C43: NET IMPOSABLE (avec indemnités) | I43: =I39 -> 634.98 | K43: 6 | P43: WE | Q43: WE | S43: 39 | T43: 39 | U43: 6
A44: 2018-09-30 | C44: CUMUL ANNUEL NET IMPOSABLE (sans indemnités) | I44: =IF(I39<>0,I42,"…€") -> 578.34 | K44: 7 | P44: WE | Q44: WE | S44: 39 | T44: 39 | U44: 7
C45: CUMUL ANNUEL NET IMPOSABLE (avec indemnités) | I45: =IF(I39<>0,I43,"…€") -> 634.98 | M45: =IF(K45=6,"",IF(K45=7,"",IF(K45=1,10.5,IF(K45=2,10.5,IF(K45=3,9.5,IF(K45=4,10,IF(K45=5,10,""))))))) ->  | N45: =IF(L45="JNG","",M45) -> 
A46: Conservez ce bulletin de salaire sans limitation de durée. La loi 91. 1406 du 31/12/1991 ainsi que le décret n° 92. 660 du 13/07/1992 suppriment l'obligation des cotisations patronales.Taux en vigueur au 01 / 01 / 2017
